bitfinex/quotes_ETHUSD_20250216
["timestamp","ask_amount","ask_price","bid_price","bid_amount"]
[1739691135592,3.98015272,2698.1,2697.6,5.38549288]
[1739691136051,3.70646,2698.0,2697.6,5.38549288]
[1739691136257,3.70646,2698.0,2697.6,4.42899]
[1739691136561,3.98027272,2698.0,2697.6,4.42899]
[1739691137608,0.27381272,2697.9,2697.6,4.42899]
[1739691138004,0.27381272,2697.9,2697.6,0.7221]
[1739691139114,0.27381272,2697.8,2697.6,4.42902]
[1739691139412,0.27381272,2697.8,2697.6,5.38553988]
[1739691140201,0.27381272,2698.0,2697.6,5.38553988]
[1739691140400,0.27381272,2698.0,2697.6,4.42902]
[1739691141504,0.27381272,2697.9,2697.6,4.42902]
[1739691142813,0.27381272,2697.8,2697.6,4.42902]
[1739691143909,3.70651,2698.0,2697.6,4.42902]
[1739691143910,7.41307,2698.0,2697.6,0.7221]
[1739691144478,0.7934,2697.9,2697.4,0.7221]
[1739691144793,3.70706,2697.6,2697.2,3.0]
[1739691144987,3.70706,2697.6,2697.1,5.85881882]
[1739691145312,3.70694,2697.7,2697.1,5.85881882]
[1739691145474,4.50055,2697.5,2697.1,2.15122882]
[1739691145679,3.7073,2697.4,2697.1,2.15122882]
[1739691146511,4.50055,2697.5,2697.1,2.15122882]
[1739691148304,0.27447366,2697.4,2697.1,6.7448107]
[1739691148614,0.27447366,2697.4,2697.2,3.70754]
[1739691149616,4.50036,2697.7,2697.2,3.70754]
[1739691150623,4.50036,2697.7,2697.1,6.7448107]
[1739691150822,0.27435811,2697.6,2697.1,6.7448107]
[1739691151018,3.70716,2697.5,2697.1,2.15122882]
[1739691151400,3.70728,2697.4,2697.1,2.15122882]
[1739691151597,3.70738,2697.4,2697.0,3.0]
[1739691151913,3.70716,2697.5,2697.0,3.0]
[1739691152100,3.98162811,2697.4,2697.0,3.0]
[1739691152299,4.77502811,2697.4,2697.0,3.0]
[1739691152519,4.77502811,2697.4,2696.9,2.15122882]
[1739691152825,3.70741,2697.3,2696.9,2.15122882]
[1739691153320,4.77502811,2697.4,2696.9,2.15122882]
[1739691153526,4.77502811,2697.4,2696.9,5.85910882]
[1739691153527,3.70742,2697.3,2696.9,5.85910882]
[1739691153723,3.98177811,2697.3,2696.9,5.85910882]
[1739691154418,0.27435811,2697.3,2696.9,5.85910882]
[1739691154625,3.98180811,2697.3,2696.9,7.1708347]
[1739691154919,0.27435811,2697.3,2697.0,3.70781]
[1739691155125,0.27435811,2697.3,2697.1,1.42912882]
[1739691155497,3.70741,2697.3,2697.1,1.42912882]
[1739691155823,3.70741,2697.3,2696.9,2.15122882]
[1739691156702,3.70755,2697.2,2696.9,2.15122882]
[1739691156903,4.49711,2697.3,2696.9,2.15122882]
[1739691160141,8.2046,2697.3,2696.9,2.15122882]
[1739691160333,0.7897,2697.3,2696.9,2.15122882]
[1739691160535,3.70754,2697.2,2696.9,1.42912882]
[1739691163474,0.7897,2697.3,2696.9,1.42912882]
[1739691163748,3.70756,2697.2,2696.9,1.42912882]
[1739691168362,4.49712,2697.3,2696.9,1.42912882]
[1739691168560,4.49712,2697.3,2696.9,5.13708882]
[1739691168716,4.49716,2697.3,2696.9,1.42912882]
[1739691168919,3.70746,2697.3,2696.9,1.42912882]
[1739691169240,7.41476,2697.4,2697.0,0.7221]
[1739691170280,3.70734,2697.4,2697.0,0.7221]
[1739691170767,7.41525,2697.2,2696.9,1.42912882]
[1739691170973,3.70762,2697.2,2696.9,1.42912882]
[1739691171975,4.53652,2697.2,2696.9,1.42912882]
[1739691172882,8.24415,2697.2,2696.9,1.42912882]
[1739691173230,4.53652,2697.2,2696.9,1.42912882]
[1739691174773,3.70736,2697.4,2696.9,1.42912882]
[1739691174774,3.70736,2697.4,2696.9,6.02307842]
[1739691175082,3.70742,2697.3,2696.9,6.02307842]
[1739691175431,3.70742,2697.3,2696.9,2.31518842]
[1739691176165,3.70755,2697.2,2696.9,1.42912882]
[1739691176370,3.98210386,2697.2,2696.9,1.42912882]
[1739691177299,0.27455386,2697.2,2696.9,1.42912882]
[1739691177570,0.8289,2697.5,2696.9,1.42912882]
[1739691177772,3.70741,2697.3,2696.9,5.13694882]
[1739691178471,8.24338,2697.5,2697.0,3.70775]
[1739691178677,0.8289,2697.5,2696.9,6.4486677]
[1739691178845,3.70728,2697.4,2696.9,2.7408477]
[1739691179033,3.70728,2697.4,2696.9,5.13707882]
[1739691179939,0.27461198,2697.3,2696.9,5.13707882]
[1739691180467,0.27461198,2697.3,2696.9,1.42912882]
[1739691180652,3.98210198,2697.3,2696.9,1.42912882]
[1739691181477,3.70749,2697.3,2696.9,1.42912882]
[1739691182473,0.8289,2697.5,2697.0,3.70775]
[1739691182772,3.70727,2697.4,2697.0,3.70775]
[1739691183126,3.70727,2697.4,2696.9,5.13706882]
[1739691183869,3.70727,2697.4,2697.0,3.70778]
[1739691184077,0.8289,2697.5,2697.2,3.70753]
[1739691184228,0.27462285,2697.3,2697.2,0.7221]
[1739691184429,0.27462285,2697.3,2697.2,5.19475288]
[1739691185729,3.70702,2697.6,2697.2,5.19475288]
[1739691185925,3.70702,2697.6,2697.2,4.97963]
[1739691186435,3.70702,2697.6,2697.2,1.2721]
[1739691187036,7.41412,2697.6,2697.2,0.55]
[1739691187261,3.70702,2697.6,2697.2,0.55]
[1739691187533,0.27450995,2697.5,2697.2,0.55]
[1739691188572,0.27450995,2697.4,2697.2,0.55]
[1739691188771,4.73267995,2697.4,2697.0,0.7221]
[1739691189143,8.44007995,2697.4,2697.0,0.7221]
[1739691189485,4.73267995,2697.4,2697.0,0.7221]
[1739691190072,0.27450995,2697.3,2697.0,0.7221]
[1739691191544,4.45817,2697.4,2697.0,0.7221]
[1739691193866,8.16557,2697.4,2697.0,0.7221]
[1739691194088,3.70744,2697.3,2697.0,0.7221]
[1739691194290,3.98197424,2697.3,2696.9,1.42912882]
[1739691195802,3.70744,2697.3,2696.9,1.42912882]
[1739691196701,4.45817,2697.4,2696.9,1.42912882]
[1739691196886,4.45817,2697.4,2696.9,5.13701882]
[1739691197089,8.16555,2697.4,2696.9,5.13701882]
[1739691197601,4.45817,2697.4,2696.9,5.13701882]
[1739691198204,0.27454668,2697.3,2696.9,5.13701882]
[1739691198502,3.98198668,2697.3,2696.9,6.4487447]
[1739691199607,3.70744,2697.3,2696.9,2.7408547]
[1739691199912,3.70744,2697.3,2696.9,6.4487947]
[1739691203310,3.70744,2697.3,2696.9,2.7408547]
[1739691204909,4.45819,2697.4,2696.9,6.4487247]
[1739691205205,0.7509,2697.4,2696.9,6.4487247]
[1739691205367,3.70743,2697.3,2696.9,5.13699882]
[1739691206723,3.70743,2697.3,2696.8,3.7221]
[1739691206724,3.70761,2697.2,2696.8,3.7221]
[1739691207822,3.70761,2697.2,2696.8,7.43017]
[1739691208914,3.70761,2697.2,2696.8,3.7221]
[1739691209418,3.7077,2697.1,2696.8,3.7221]
[1739691210197,3.70745,2697.3,2696.8,3.7221]
[1739691211319,3.70769,2697.1,2696.8,3.7221]
[1739691218287,3.70799,2696.9,2696.6,0.7221]
[1739691221920,3.70816,2696.8,2696.4,3.7221]
[1739691223917,4.46156,2696.8,2696.4,3.7221]
[1739691224247,0.7534,2696.8,2696.4,0.7221]
[1739691224551,3.70831,2696.7,2696.4,0.7221]
[1739691228166,0.7534,2696.8,2696.4,0.7221]
[1739691228664,4.46163,2696.8,2696.4,0.7221]
[1739691231063,3.70823,2696.7,2696.4,0.7221]
[1739691233567,4.46149,2696.8,2696.4,0.7221]
[1739691234279,3.7083,2696.7,2696.2,6.70885]
[1739691234438,3.7083,2696.7,2696.2,7.43095]
[1739691234982,3.70844,2696.6,2696.2,3.7221]
[1739691235334,4.46159,2696.8,2696.2,3.7221]
[1739691235538,3.70832,2696.7,2696.2,7.43094]
[1739691237459,3.70823,2696.7,2696.2,3.7221]
[1739691238495,3.70823,2696.7,2696.2,8.31702588]
[1739691240592,3.70823,2696.7,2696.2,4.60811588]
[1739691241083,3.70823,2696.7,2696.2,8.31701588]
[1739691241397,3.70849,2696.6,2696.2,0.7221]
[1739691242387,3.70871,2696.4,2695.9,5.68835882]
[1739691242593,3.70871,2696.4,2696.0,0.7221]
[1739691242750,3.70871,2696.4,2696.0,3.7221]
[1739691243260,0.7694,2696.5,2695.8,3.70939]
[1739691243460,0.7694,2696.9,2696.0,0.7221]
[1739691243666,0.7694,2696.9,2696.1,3.70906]
[1739691243667,3.70838,2696.6,2696.1,3.70906]
[1739691244503,3.70853,2696.5,2696.0,4.43129]
[1739691244894,7.41713,2696.5,2696.0,4.43129]
[1739691245894,7.41663,2696.7,2696.1,3.70895]
[1739691246099,3.70847,2696.6,2696.1,3.70895]
[1739691246404,0.8078,2696.5,2696.0,0.7221]
[1739691246715,3.70873,2696.4,2696.0,0.7221]
[1739691247516,3.97507,2696.9,2696.0,0.7221]
[1739691247517,3.7084,2696.6,2696.0,0.7221]
[1739691247686,3.7084,2696.6,2696.1,3.70899]
[1739691247883,3.70852,2696.5,2696.0,4.43129]
[1739691248211,3.70852,2696.5,2696.0,5.38826388]
[1739691248683,3.70825,2696.7,2696.1,3.70905]
[1739691249016,3.70844,2696.6,2696.1,3.70905]
[1739691250098,0.27408039,2696.5,2696.1,3.70905]
[1739691250503,3.98260039,2696.5,2696.1,3.70905]
[1739691251207,0.27408039,2696.5,2696.1,3.70905]
[1739691251406,3.70839,2696.6,2696.1,3.70905]
[1739691252319,3.70825,2696.7,2696.1,3.70905]
[1739691252507,3.70851,2696.5,2696.1,3.70905]
[1739691253922,3.70851,2696.5,2696.0,4.43128]
[1739691254118,3.70851,2696.5,2696.0,5.38824688]
[1739691255279,3.70866,2696.4,2696.0,1.67906688]
[1739691255790,3.70851,2696.5,2696.0,5.38823688]
[1739691257566,3.70851,2696.5,2696.0,5.38823688]
[1739691257862,3.70839,2696.6,2696.0,1.67906688]
[1739691258152,3.70839,2696.6,2696.1,3.70895]
[1739691259626,4.51598,2696.8,2696.3,5.13787882]
[1739691259627,0.8078,2696.8,2696.3,5.13787882]
[1739691259828,3.70769,2697.1,2696.3,1.42912882]
[1739691259829,0.8078,2697.0,2696.3,1.42912882]
[1739691260048,4.51564,2697.0,2696.4,3.70864]
[1739691260216,4.51564,2697.0,2696.5,3.70844]
[1739691260834,3.70797,2696.9,2696.5,3.70844]
[1739691261457,3.98208868,2696.9,2696.5,3.70844]
[1739691261755,3.70818,2696.8,2696.3,5.13787882]
[1739691261962,3.70837,2696.6,2696.2,3.7221]
[1739691262457,3.70837,2696.6,2696.2,7.431]
[1739691264118,3.70837,2696.6,2696.2,3.7221]
[1739691266075,7.41682,2696.6,2696.2,3.7221]
[1739691266263,3.70837,2696.6,2696.2,0.7221]
[1739691267479,7.41683,2696.6,2696.2,0.7221]
[1739691270080,3.70837,2696.6,2696.2,0.7221]
[1739691270381,0.7825,2696.7,2696.2,1.30812588]
[1739691270679,4.49073,2696.7,2696.2,5.01694588]
[1739691270862,3.70837,2696.6,2696.2,1.30812588]
[1739691271772,3.70823,2696.7,2696.3,3.70878]
[1739691272864,3.70818,2696.8,2696.3,3.70878]
[1739691273984,3.7083,2696.7,2696.3,3.70878]
[1739691274373,3.70793,2697.0,2696.5,3.70845]
[1739691274541,3.70793,2697.0,2696.6,0.7221]
[1739691274742,0.7727,2696.9,2696.5,1.42912882]
[1739691275064,4.48073,2696.9,2696.4,4.25855]
[1739691275558,3.70803,2696.9,2696.5,0.7221]
[1739691276438,3.70803,2696.9,2696.5,4.4306]
[1739691276639,3.70803,2696.9,2696.5,4.8007882]
[1739691276836,0.27431804,2696.8,2696.5,4.8007882]
[1739691277991,0.27431804,2696.8,2696.5,1.0922882]
[1739691278346,0.27431804,2696.8,2696.5,0.7221]
[1739691278547,3.70803,2696.9,2696.5,0.7221]
[1739691284692,3.70803,2696.9,2696.5,4.43059]
[1739691285067,3.70817,2696.8,2696.5,0.7221]
[1739691285668,3.70824,2696.7,2696.3,0.7221]
[1739691285883,3.70844,2696.6,2696.3,0.7221]
[1739691286082,3.70862,2696.5,2696.1,3.7221]
[1739691286299,3.70865,2696.4,2696.1,0.7221]
[1739691288673,3.70879,2696.3,2696.1,0.7221]
[1739691290119,3.70879,2696.3,2695.9,4.42912882]
[1739691290424,3.70906,2696.1,2695.9,3.0]
[1739691290728,3.7092,2696.0,2695.7,1.42912882]
[1739691290891,8.16901,2696.1,2695.7,1.42912882]
[1739691291402,8.169,2696.1,2695.7,1.42912882]
[1739691291813,8.16902,2696.1,2695.7,1.42912882]
[1739691292514,4.45986,2696.1,2695.7,1.42912882]
[1739691292713,3.7092,2696.0,2695.7,1.42912882]
[1739691293614,4.45986,2696.1,2695.7,1.42912882]
[1739691293818,3.70906,2696.1,2695.7,1.42912882]
[1739691294122,7.41821,2696.1,2695.7,1.42912882]
[1739691294341,3.70906,2696.1,2695.7,1.42912882]
[1739691294493,7.4182,2696.1,2695.7,1.42912882]
[1739691294833,3.70922,2696.0,2695.7,1.42912882]
[1739691295034,3.70906,2696.1,2695.7,1.42912882]
[1739691296236,3.70892,2696.2,2695.7,5.13865882]
[1739691296538,3.70892,2696.2,2695.7,6.6877017]
[1739691297135,3.70892,2696.2,2695.8,0.7221]
[1739691297794,3.70892,2696.2,2695.7,2.9781717]
[1739691297795,3.70855,2696.5,2696.1,1.42912882]
[1739691298931,3.70843,2696.6,2696.2,0.7221]
[1739691299139,3.70843,2696.6,2696.3,1.42912882]
[1739691299514,3.70833,2696.7,2696.3,1.42912882]
[1739691300016,7.41669,2696.7,2696.3,1.42912882]
[1739691300215,7.41664,2696.7,2696.3,1.42912882]
[1739691300618,3.70831,2696.7,2696.3,1.42912882]
[1739691301552,3.70804,2696.9,2696.4,0.7221]
[1739691301702,3.70804,2696.9,2696.5,3.7085]
[1739691302267,3.70822,2696.8,2696.4,0.7221]
[1739691303764,3.70804,2696.9,2696.4,0.7221]
[1739691303913,3.70804,2696.9,2696.4,4.43067]
[1739691304666,3.70804,2696.9,2696.4,0.7221]
[1739691304841,3.7082,2696.8,2696.4,0.7221]
[1739691305037,3.98187775,2696.8,2696.4,0.7221]
[1739691305926,3.70826,2696.7,2696.4,0.7221]
[1739691306129,3.70838,2696.6,2696.2,0.7221]
[1739691307971,3.70864,2696.5,2696.2,0.7221]
[1739691310768,3.70837,2696.6,2696.2,0.7221]
[1739691311184,7.41684,2696.6,2696.2,0.7221]
[1739691311532,3.70863,2696.5,2696.2,0.7221]
[1739691312045,3.70837,2696.6,2696.2,0.7221]
[1739691312470,0.8063,2696.7,2696.2,0.7221]
[1739691312471,3.70825,2696.7,2696.2,4.43094]
[1739691313331,3.70817,2696.8,2696.4,0.7221]
[1739691313726,7.41634,2696.8,2696.4,0.7221]
[1739691314181,3.70817,2696.8,2696.4,0.7221]
[1739691315178,3.70827,2696.7,2696.4,0.7221]
[1739691315480,3.9823372,2696.7,2696.4,0.7221]
[1739691317580,3.9824972,2696.6,2696.4,0.7221]
[1739691318584,3.9824972,2696.6,2696.2,1.2721]
[1739691318781,3.70853,2696.5,2696.2,0.7221]
[1739691318946,0.8063,2696.4,2696.0,0.7221]
[1739691319153,7.41776,2696.3,2696.0,0.7221]
[1739691319481,3.70885,2696.3,2696.0,0.7221]
[1739691319948,3.70899,2696.2,2695.9,6.79912882]
[1739691321078,3.70878,2696.3,2695.9,6.79912882]
[1739691321666,8.22372,2696.4,2695.9,10.50843882]
[1739691321830,4.51496,2696.4,2695.9,11.6315017]
[1739691322668,8.22373,2696.4,2695.9,11.6315017]
[1739691322837,4.51496,2696.4,2695.9,11.6315017]
[1739691323161,0.8063,2696.4,2696.0,3.70908]
[1739691323362,3.70851,2696.5,2696.0,3.70908]
[1739691324384,3.70851,2696.5,2696.1,0.7221]
[1739691324591,0.27408039,2696.4,2696.1,2.15122882]
[1739691325091,3.98273039,2696.4,2696.1,2.15122882]
[1739691325392,0.27408039,2696.4,2696.1,2.15122882]
[1739691325886,7.41717,2696.5,2696.1,2.15122882]
[1739691326186,3.70867,2696.4,2696.1,2.15122882]
[1739691326685,3.70858,2696.5,2696.1,2.15122882]
[1739691327241,7.41718,2696.5,2696.1,2.15122882]
[1739691327473,7.41719,2696.5,2696.1,2.15122882]
[1739691328050,7.41719,2696.5,2696.1,0.7221]
[1739691328394,7.4172,2696.5,2696.1,0.7221]
[1739691328558,0.27416181,2696.4,2696.1,0.7221]
[1739691328892,3.98282181,2696.4,2696.1,0.7221]
[1739691329063,0.27416181,2696.4,2696.1,0.7221]
[1739691329561,0.27416181,2696.3,2696.1,0.7221]
[1739691330465,0.27416181,2696.3,2696.1,1.4150667]
[1739691330650,3.70858,2696.5,2696.1,2.15122882]
[1739691331610,3.70858,2696.5,2696.1,5.86025882]
[1739691331782,0.8161,2696.8,2696.4,3.70858]
[1739691331995,4.52395,2697.0,2696.4,4.43068]
[1739691332399,3.70809,2696.9,2696.4,4.43068]
[1739691332917,3.70809,2696.9,2696.4,0.7221]
[1739691333095,3.70816,2696.8,2696.4,0.7221]
[1739691333266,3.70809,2696.9,2696.4,0.7221]
[1739691333466,3.98227736,2696.8,2696.4,0.7221]
[1739691334417,3.70827,2696.7,2696.4,0.7221]
[1739691335648,0.27418736,2696.6,2696.4,0.7221]
[1739691336904,0.27418736,2696.5,2696.4,0.7221]
[1739691347542,0.27418736,2696.5,2696.2,0.55]
[1739691348051,0.27418736,2696.5,2696.2,4.25886]
[1739691349661,0.8328,2696.6,2696.2,4.25886]
[1739691349956,0.8328,2696.6,2696.0,5.37]
[1739691350113,3.70874,2696.4,2696.0,5.37]
[1739691350313,0.8192,2696.3,2696.0,3.0]
[1739691350960,0.8192,2696.3,2696.0,6.70918]
[1739691353826,0.8192,2696.3,2696.0,3.0]
[1739691354077,4.52804,2696.3,2695.9,4.42912882]
[1739691354260,0.8192,2696.3,2695.9,4.42912882]
[1739691354463,0.8192,2696.3,2695.9,8.13844882]
[1739691358481,4.52801,2696.3,2695.9,8.13844882]
[1739691360786,0.8192,2696.3,2696.1,3.70905]
[1739691361090,3.70852,2696.5,2696.1,3.70905]
[1739691361579,0.8192,2696.6,2696.2,3.70888]
[1739691361742,4.52759,2696.6,2696.2,3.70888]
[1739691361947,0.27428556,2696.4,2696.2,3.70888]
[1739691362281,0.27428556,2696.4,2696.1,1.42912882]
[1739691362485,0.27428556,2696.4,2696.1,5.13817882]
[1739691362685,0.27428556,2696.4,2696.1,5.50610483]
[1739691363079,3.70852,2696.5,2696.1,5.50610483]
[1739691363583,4.52759,2696.6,2696.1,5.50610483]
[1739691363750,8.23608,2696.6,2696.1,5.13817882]
[1739691364182,3.70865,2696.4,2696.1,1.42912882]
[1739691364387,3.70865,2696.4,2696.1,0.55]
[1739691365561,0.27429395,2696.3,2696.1,0.55]
[1739691367091,3.70865,2696.4,2696.1,0.55]
[1739691368288,4.52759,2696.6,2696.1,0.55]
[1739691368477,3.70859,2696.5,2696.1,0.55]
[1739691369691,4.52759,2696.6,2696.1,4.25904]
[1739691369891,0.8192,2696.6,2696.1,1.97912882]
[1739691370089,0.27428701,2696.4,2696.2,3.70881]
[1739691370290,0.27428701,2696.4,2696.2,7.41764]
[1739691370497,0.27428701,2696.4,2696.2,4.1214097]
[1739691370995,0.27428701,2696.4,2696.1,5.68816882]
[1739691371379,8.23613,2696.6,2696.1,5.68816882]
[1739691371693,8.23613,2696.6,2696.1,4.25904]
[1739691372192,3.70877,2696.4,2696.0,3.0]
[1739691372493,4.51818,2696.3,2696.0,3.0]
[1739691372994,4.51818,2696.3,2695.9,4.42912882]
[1739691373206,4.51818,2696.3,2695.9,3.0]
[1739691375770,8.22706,2696.3,2695.9,3.0]
[1739691375973,4.51818,2696.3,2695.9,3.0]
[1739691376804,4.51818,2696.3,2695.7,10.50873882]
[1739691377097,4.51839,2696.2,2695.7,10.50873882]
[1739691377258,4.79273062,2696.2,2695.7,10.50873882]
[1739691379093,0.27434062,2696.1,2695.7,10.50873882]
[1739691379987,0.27434062,2696.1,2695.7,14.21827882]
[1739691380285,4.51839,2696.2,2695.8,3.70943]
[1739691381891,0.8094,2696.2,2695.8,3.70943]
[1739691382695,0.8094,2696.2,2695.7,1.42912882]
[1739691382896,4.51839,2696.2,2695.7,5.13865882]
[1739691383595,4.51839,2696.2,2695.8,3.70946]
[1739691384597,0.27426921,2696.1,2695.9,1.42912882]
[1739691385101,0.27426921,2696.1,2696.0,3.70919]
[1739691385601,0.8319,2696.4,2696.0,3.70919]
[1739691387106,0.27423633,2696.3,2696.0,3.70919]
[1739691387309,0.27423633,2696.3,2695.9,5.13844882]
[1739691387472,0.27423633,2696.3,2696.0,3.70915]
[1739691387985,0.27423633,2696.3,2695.9,8.84762882]
[1739691388185,0.27423633,2696.3,2695.9,5.13837882]
[1739691388409,0.27423633,2696.2,2695.9,5.13837882]
[1739691388588,0.27423633,2696.2,2696.0,3.7091]
[1739691389477,0.27423633,2696.2,2695.9,5.13837882]
[1739691389975,4.54055,2696.4,2695.9,5.13837882]
[1739691390319,4.54055,2696.4,2695.9,5.13836882]
[1739691390621,4.54055,2696.4,2696.0,3.70919]
[1739691391006,0.8319,2696.4,2695.9,1.42912882]
[1739691391188,4.54066,2696.4,2695.9,5.13832882]
[1739691391393,0.2742315,2696.3,2695.9,5.13832882]
[1739691392623,0.2742315,2696.2,2695.9,5.13832882]
[1739691392921,0.2742315,2696.2,2696.0,3.70908]
[1739691393106,0.2742315,2696.2,2696.1,3.70906]
[1739691394493,0.8319,2696.4,2696.1,3.70906]
[1739691400337,3.70817,2696.8,2696.1,1.42912882]
[1739691400535,4.50664,2696.7,2696.1,5.13809882]
[1739691400755,4.50664,2696.7,2696.3,3.70877]
[1739691401737,0.7984,2696.7,2696.3,3.70877]
[1739691401940,4.50666,2696.7,2696.3,3.70877]
[1739691402440,0.27432643,2696.6,2696.3,3.70877]
[1739691403216,0.27432643,2696.6,2696.2,3.7089]
[1739691403423,0.27432643,2696.6,2696.2,3.70884]
[1739691404506,0.27432643,2696.5,2696.2,3.70884]
[1739691405928,8.21498,2696.7,2696.2,3.70882]
[1739691406629,4.50666,2696.7,2696.2,3.70882]
[1739691407434,0.27422865,2696.6,2696.2,3.70882]
[1739691407927,0.27422865,2696.6,2696.3,5.13783882]
[1739691408429,0.7984,2696.7,2696.3,5.13783882]
[1739691408828,3.70719,2697.5,2696.5,1.42912882]
[1739691408829,5.28,2697.4,2696.5,1.42912882]
[1739691409013,0.7805,2697.2,2696.7,3.70822]
[1739691409218,4.48811,2697.2,2696.7,3.70822]
[1739691409808,0.27414528,2697.1,2696.7,3.70822]
[1739691410003,3.98189528,2697.1,2696.5,8.84590882]
[1739691410218,0.7702,2697.0,2696.6,3.70834]
[1739691411645,0.27414528,2696.9,2696.6,3.70834]
[1739691412633,0.27414528,2696.9,2696.7,3.70817]
[1739691413246,0.7702,2697.0,2696.6,3.70834]
[1739691414810,0.7702,2697.0,2696.6,3.70827]
[1739691415009,0.7702,2697.0,2696.6,4.66507388]
[1739691415210,0.7702,2697.0,2696.7,3.70823]
[1739691417014,0.7702,2697.5,2697.0,3.70769]
[1739691417209,4.47737,2697.5,2697.0,7.41538]
[1739691417433,0.7702,2697.5,2697.1,3.70762]
[1739691417836,0.27392135,2697.4,2697.1,3.70762]
[1739691418152,0.27392135,2697.4,2697.0,3.70769]
[1739691418352,0.27392135,2697.4,2697.0,4.66438088]
[1739691419344,4.47734,2697.5,2697.0,4.66438088]
[1739691419747,4.47734,2697.5,2697.0,0.95669088]
[1739691419962,4.47755,2697.4,2696.9,5.13706882]
[1739691421549,0.7702,2697.4,2696.9,1.42912882]
[1739691421736,0.7702,2697.4,2697.0,3.70779]
[1739691423865,0.7702,2697.4,2697.0,3.70772]
[1739691428879,0.7702,2697.4,2697.2,3.70748]
[1739691429060,0.7764,2697.6,2697.2,4.078228]
[1739691429569,4.48345,2697.6,2697.2,0.370748]
[1739691429758,4.48345,2697.6,2697.1,5.13668882]
[1739691431958,0.7764,2697.6,2697.3,3.7074]
[1739691432383,0.7764,2697.6,2697.2,3.70753]
[1739691432583,4.48348,2697.6,2697.1,5.13668882]
[1739691433104,4.4834,2697.6,2697.1,5.13668882]
[1739691433630,4.4834,2697.6,2697.1,8.84430882]
[1739691433922,4.4834,2697.6,2697.1,5.13668882]
[1739691435032,0.27381829,2697.5,2697.1,5.13668882]
[1739691436538,4.4834,2697.6,2697.1,5.13668882]
[1739691436832,4.48343,2697.6,2697.1,5.13668882]
[1739691439538,3.9813224,2697.5,2697.1,1.42912882]
[1739691441027,0.2741324,2697.4,2697.1,1.42912882]
[1739691442439,0.7764,2697.6,2697.3,1.42912882]
[1739691442607,0.8067,2697.9,2697.4,3.70727]
[1739691442816,3.70673,2697.8,2697.4,3.70726]
[1739691443941,0.27432436,2697.7,2697.4,3.70726]
[1739691444644,0.27432436,2697.7,2697.5,3.70706]
[1739691445049,0.27432436,2697.6,2697.3,1.42912882]
[1739691445210,0.27432436,2697.6,2697.4,3.70727]
[1739691445598,0.27432436,2697.6,2697.4,3.70719]
[1739691445941,0.27432436,2697.6,2697.4,7.41439]
[1739691446115,0.27432436,2697.6,2697.4,3.70719]
[1739691446313,3.98106436,2697.8,2697.4,3.70719]
[1739691446651,0.27432436,2697.8,2697.4,3.70719]
[1739691447642,0.27432436,2697.7,2697.4,3.70719]
[1739691448857,0.27432436,2697.7,2697.5,5.13612882]
[1739691449000,0.27432436,2697.7,2697.6,3.70699]
[1739691449546,0.8067,2697.9,2697.6,3.70699]
[1739691450639,0.34302348,2697.8,2697.5,5.13624882]
[1739691451040,0.61738017,2697.8,2697.5,5.13624882]
[1739691452344,0.34302348,2697.8,2697.5,5.13624882]
[1739691452639,4.51329,2697.9,2697.5,1.42912882]
[1739691452814,4.51329,2697.9,2697.3,8.84375882]
[1739691453014,4.51329,2697.9,2697.4,3.70724]
[1739691453215,3.70676,2697.8,2697.3,5.13642882]
[1739691453649,3.70676,2697.8,2697.3,8.84374882]
[1739691454652,3.70676,2697.8,2697.3,8.84376882]
[1739691454948,0.27432938,2697.7,2697.3,8.84376882]
[1739691455243,0.61724037,2697.7,2697.4,3.70726]
[1739691456342,0.27432938,2697.7,2697.4,3.70726]
[1739691456748,3.70676,2697.8,2697.4,3.70726]
[1739691457560,0.8067,2697.9,2697.5,3.70704]
[1739691457732,0.8067,2697.9,2697.3,1.42912882]
[1739691458034,4.51335,2697.9,2697.4,3.70725]
[1739691458233,0.34291158,2697.8,2697.4,3.70725]
[1739691459261,0.27443536,2697.7,2697.4,3.70725]
[1739691460035,0.61734694,2697.7,2697.4,3.70725]
[1739691460662,0.34291158,2697.7,2697.4,3.70725]
[1739691461967,3.70673,2697.8,2697.4,3.70725]
[1739691462624,0.8067,2697.9,2697.4,3.70725]
[1739691462963,4.51332,2697.9,2697.4,3.70725]
[1739691463167,4.51332,2697.9,2697.5,3.70712]
[1739691463352,4.51332,2697.9,2697.4,3.70725]
[1739691463566,0.34310107,2697.8,2697.4,3.70725]
[1739691463772,0.61757485,2697.8,2697.4,3.70725]
[1739691464872,0.27447378,2697.7,2697.4,3.70725]
[1739691466175,4.51332,2697.9,2697.4,3.70725]
[1739691467234,0.27449922,2697.8,2697.4,3.70725]
[1739691467440,3.98125922,2697.8,2697.4,3.70725]
[1739691468484,0.27449922,2697.7,2697.4,3.70725]
[1739691469276,0.27449922,2697.7,2697.5,3.70703]
[1739691469456,0.6176905,2697.7,2697.4,3.70719]
[1739691469780,0.6176905,2697.7,2697.4,4.21698913]
[1739691470270,0.34319128,2697.7,2697.4,7.92418913]
[1739691470471,0.34319128,2697.7,2697.4,4.21698913]
[1739691470658,0.34319128,2697.7,2697.4,4.21696913]
[1739691471083,4.51329,2697.9,2697.4,4.21696913]
[1739691471084,0.34319128,2697.6,2697.4,4.21696913]
[1739691471291,0.34319128,2697.6,2697.5,3.70713]
[1739691473460,0.61798469,2697.6,2697.5,3.70713]
[1739691474989,0.34319128,2697.6,2697.5,3.70713]
[1739691475190,4.51328,2697.9,2697.5,3.70713]
[1739691475807,0.8067,2697.9,2697.5,3.70713]
[1739691475972,0.0992,2698.0,2697.6,4.429]
[1739691476185,0.27481244,2697.8,2697.6,3.7069]
[1739691476805,0.27481244,2697.8,2697.5,5.13619882]
[1739691477815,0.27481244,2697.7,2697.5,5.13619882]
[1739691479045,0.27481244,2697.7,2697.6,5.38563988]
[1739691479547,0.0992,2698.0,2697.7,3.70685]
[1739691480606,0.2747485,2697.9,2697.7,3.70685]
[1739691481749,0.34339076,2697.8,2697.7,3.70685]